[Event "Early-Titled-Tuesday-Blitz-May-07-2024"]
[Site "Chess.com"]
[Date "2024.05.07"]
[Round "5"]
[White "Rodalquilar"]
[Black "GrotBchess"]
[Result "1-0"]
[WhiteElo "2742"]
[BlackElo "2485"]
[TimeControl "180+1"]
[EndTime "8:59:05 PDT"]
[Termination "Rodalquilar won by checkmate"]

1. d4 {[%clk 0:03:00.9]} 1... Nf6 {[%clk 0:02:59.2]} 2. Nf3 {[%clk 0:03:01]}
2... e6 {[%clk 0:02:59.7]} 3. Bf4 {[%clk 0:03:01.1]} 3... d5 {[%clk 0:02:59.5]}
4. e3 {[%clk 0:03:01.5]} 4... c5 {[%clk 0:02:59.4]} 5. Nbd2 {[%clk 0:03:00.2]}
5... Nc6 {[%clk 0:02:59.8]} 6. c3 {[%clk 0:03:00.7]} 6... Bd6 {[%clk 0:03:00.2]}
7. Bg3 {[%clk 0:03:01]} 7... Qe7 {[%clk 0:03:00.3]} 8. Bxd6 {[%clk 0:02:48]}
8... Qxd6 {[%clk 0:02:58.5]} 9. Bb5 {[%clk 0:02:48.9]} 9... O-O {[%clk
0:02:57.6]} 10. O-O {[%clk 0:02:45.5]} 10... Bd7 {[%clk 0:02:55.2]} 11. Bxc6
{[%clk 0:02:42]} 11... Bxc6 {[%clk 0:02:54.6]} 12. Ne5 {[%clk 0:02:42.9]} 12...
Bb5 {[%clk 0:02:45.2]} 13. Re1 {[%clk 0:02:43]} 13... Rac8 {[%clk 0:02:44.9]}
14. Qb3 {[%clk 0:02:41.1]} 14... Bc6 {[%clk 0:02:27.5]} 15. Qa3 {[%clk
0:02:40.7]} 15... Bb5 {[%clk 0:01:57.6]} 16. Qxa7 {[%clk 0:01:37.1]} 16... Ba6
{[%clk 0:01:41.8]} 17. a4 {[%clk 0:01:37]} 17... Ne8 {[%clk 0:00:56.4]} 18. a5
{[%clk 0:01:24.6]} 18... f6 {[%clk 0:00:46.5]} 19. Nef3 {[%clk 0:01:24.8]} 19...
Rc6 {[%clk 0:00:40.1]} 20. dxc5 {[%clk 0:01:09.8]} 20... Qd7 {[%clk 0:00:38.9]}
21. Nd4 {[%clk 0:01:04.8]} 21... Rc8 {[%clk 0:00:25.8]} 22. c6 {[%clk
0:00:49.9]} 22... Qc7 {[%clk 0:00:20.5]} 23. Nxe6 {[%clk 0:00:44.1]} 23... Qxc6
{[%clk 0:00:18.7]} 24. Nxf8 {[%clk 0:00:44.4]} 24... Kxf8 {[%clk 0:00:18.8]} 25.
Qd4 {[%clk 0:00:40.8]} 25... Nd6 {[%clk 0:00:18.4]} 26. e4 {[%clk 0:00:38.7]}
26... dxe4 {[%clk 0:00:16.2]} 27. Nxe4 {[%clk 0:00:39]} 27... Nxe4 {[%clk
0:00:15.9]} 28. Qxe4 {[%clk 0:00:38.4]} 28... Qc5 {[%clk 0:00:15.2]} 29. Rad1
{[%clk 0:00:31.8]} 29... h6 {[%clk 0:00:13.5]} 30. Rd5 {[%clk 0:00:27.7]} 30...
Qc7 {[%clk 0:00:13]} 31. Qd4 {[%clk 0:00:23.2]} 31... Kg8 {[%clk 0:00:11.6]} 32.
Rd7 {[%clk 0:00:22.9]} 32... Qxa5 {[%clk 0:00:10.3]} 33. Rxg7+ {[%clk
0:00:17.2]} 33... Kxg7 {[%clk 0:00:09.3]} 34. Qd7+ {[%clk 0:00:16.6]} 34... Kg6
{[%clk 0:00:07.9]} 35. Qxc8 {[%clk 0:00:16.9]} 35... Qg5 {[%clk 0:00:06.1]} 36.
Qe8+ {[%clk 0:00:15.6]} 36... Kf5 {[%clk 0:00:04.3]} 37. Qe4# {[%clk 0:00:15.7]}
1-0

[Event "Early-Titled-Tuesday-Blitz-May-07-2024"]
[Site "Chess.com"]
[Date "2024.05.07"]
[Round "5"]
[White "Heinza9"]
[Black "NM_Antelacus"]
[Result "1/2-1/2"]
[WhiteElo "2336"]
[BlackElo "2282"]
[TimeControl "180+1"]
[EndTime "8:59:06 PDT"]
[Termination "Game drawn by stalemate"]

1. e4 {[%clk 0:03:00.9]} 1... c5 {[%clk 0:02:59.5]} 2. Nf3 {[%clk 0:03:00.2]}
2... Nc6 {[%clk 0:02:59.7]} 3. Bb5 {[%clk 0:02:59.3]} 3... g6 {[%clk 0:02:59]}
4. c3 {[%clk 0:02:59.1]} 4... Bg7 {[%clk 0:02:57.8]} 5. O-O {[%clk 0:02:58.9]}
5... Nf6 {[%clk 0:02:56.5]} 6. e5 {[%clk 0:02:59.3]} 6... Nd5 {[%clk 0:02:56.4]}
7. d4 {[%clk 0:02:59.5]} 7... cxd4 {[%clk 0:02:55.7]} 8. cxd4 {[%clk 0:02:59.7]}
8... O-O {[%clk 0:02:53.9]} 9. Nc3 {[%clk 0:02:59.8]} 9... Nxc3 {[%clk
0:02:52.6]} 10. bxc3 {[%clk 0:03:00]} 10... d5 {[%clk 0:02:52.5]} 11. exd6
{[%clk 0:02:59.2]} 11... Qxd6 {[%clk 0:02:52]} 12. a4 {[%clk 0:02:59.4]} 12...
Bg4 {[%clk 0:02:49.3]} 13. Ba3 {[%clk 0:02:59.2]} 13... Qd8 {[%clk 0:02:44.3]}
14. Bxc6 {[%clk 0:02:55.5]} 14... bxc6 {[%clk 0:02:43.2]} 15. h3 {[%clk
0:02:55.9]} 15... Be6 {[%clk 0:02:39.3]} 16. Re1 {[%clk 0:02:54.4]} 16... Bf6
{[%clk 0:02:29.7]} 17. Ne5 {[%clk 0:02:46.5]} 17... Qc7 {[%clk 0:02:24.9]} 18.
Bc5 {[%clk 0:02:41]} 18... Rab8 {[%clk 0:02:16.1]} 19. Rb1 {[%clk 0:02:36.6]}
19... Bf5 {[%clk 0:02:08.4]} 20. Rxb8 {[%clk 0:02:30.9]} 20... Rxb8 {[%clk
0:02:08]} 21. Qf3 {[%clk 0:02:31]} 21... Bxe5 {[%clk 0:02:02.8]} 22. dxe5 {[%clk
0:02:19.7]} 22... a6 {[%clk 0:01:30.6]} 23. Qe3 {[%clk 0:02:15.6]} 23... Qd7
{[%clk 0:01:24.2]} 24. Qg5 {[%clk 0:02:08.7]} 24... Rb7 {[%clk 0:01:18.4]} 25.
Kh2 {[%clk 0:02:02.7]} 25... Be6 {[%clk 0:01:17.4]} 26. f4 {[%clk 0:01:59]}
26... Qd2 {[%clk 0:01:10.4]} 27. Qg3 {[%clk 0:01:44.4]} 27... Bd5 {[%clk
0:01:05.1]} 28. Re3 {[%clk 0:01:28.5]} 28... Rb2 {[%clk 0:00:58.9]} 29. Rd3
{[%clk 0:01:05.3]} 29... Qxg2+ {[%clk 0:00:56.2]} 30. Qxg2 {[%clk 0:01:05.4]}
30... Rxg2+ {[%clk 0:00:55.9]} 31. Kh1 {[%clk 0:01:05.8]} 31... Rd2+ {[%clk
0:00:55.2]} 32. Rxd5 {[%clk 0:01:04.9]} 32... Rxd5 {[%clk 0:00:54.7]} 33. Bxe7
{[%clk 0:01:04.9]} 33... Rd3 {[%clk 0:00:53]} 34. Bb4 {[%clk 0:01:03.6]} 34...
Rxh3+ {[%clk 0:00:52.4]} 35. Kg2 {[%clk 0:01:03.2]} 35... Rd3 {[%clk 0:00:51.8]}
36. a5 {[%clk 0:01:01.2]} 36... h6 {[%clk 0:00:49.6]} 37. Kf2 {[%clk 0:01:00]}
37... Kg7 {[%clk 0:00:46.1]} 38. Ke2 {[%clk 0:01:00.2]} 38... Rh3 {[%clk
0:00:45.7]} 39. Be7 {[%clk 0:00:58.8]} 39... Rxc3 {[%clk 0:00:40.6]} 40. Bf6+
{[%clk 0:00:59]} 40... Kg8 {[%clk 0:00:40.2]} 41. e6 {[%clk 0:00:59.5]} 41...
Rc2+ {[%clk 0:00:36.2]} 42. Kd3 {[%clk 0:00:59.1]} 42... fxe6 {[%clk 0:00:30.8]}
43. Kxc2 {[%clk 0:00:57.8]} 43... Kf7 {[%clk 0:00:30.6]} 44. Be5 {[%clk
0:00:57.5]} 44... g5 {[%clk 0:00:29.3]} 45. fxg5 {[%clk 0:00:55.9]} 45... hxg5
{[%clk 0:00:29.4]} 46. Kd3 {[%clk 0:00:56.2]} 46... Ke7 {[%clk 0:00:28.8]} 47.
Ke4 {[%clk 0:00:56.1]} 47... Kd7 {[%clk 0:00:28.9]} 48. Bf6 {[%clk 0:00:55]}
48... g4 {[%clk 0:00:28.6]} 49. Kf4 {[%clk 0:00:54.8]} 49... c5 {[%clk
0:00:28.9]} 50. Kxg4 {[%clk 0:00:52.9]} 50... Kc6 {[%clk 0:00:28.9]} 51. Kf4
{[%clk 0:00:50.3]} 51... Kb7 {[%clk 0:00:27.7]} 52. Ke5 {[%clk 0:00:47.6]} 52...
c4 {[%clk 0:00:28]} 53. Kxe6 {[%clk 0:00:46.7]} 53... c3 {[%clk 0:00:28.5]} 54.
Bxc3 {[%clk 0:00:46.4]} 54... Ka8 {[%clk 0:00:28.9]} 55. Kd6 {[%clk 0:00:46.2]}
55... Ka7 {[%clk 0:00:29.2]} 56. Kc6 {[%clk 0:00:46.5]} 56... Ka8 {[%clk
0:00:29.6]} 57. Kb6 {[%clk 0:00:46.6]} 57... Kb8 {[%clk 0:00:30]} 58. Kxa6
{[%clk 0:00:46.4]} 58... Ka8 {[%clk 0:00:30.2]} 59. Kb6 {[%clk 0:00:46.7]} 59...
Kb8 {[%clk 0:00:30.4]} 60. a6 {[%clk 0:00:46.4]} 60... Ka8 {[%clk 0:00:30.9]}
61. Bd4 {[%clk 0:00:45.5]} 61... Kb8 {[%clk 0:00:31.1]} 62. Kc6 {[%clk
0:00:45.9]} 62... Ka8 {[%clk 0:00:31.4]} 63. a7 {[%clk 0:00:45.5]} 1/2-1/2

[Event "Early-Titled-Tuesday-Blitz-May-07-2024"]
[Site "Chess.com"]
[Date "2024.05.07"]
[Round "5"]
[White "mapleaff"]
[Black "WilsonPalencia21"]
[Result "1-0"]
[WhiteElo "2279"]
[BlackElo "2532"]
[TimeControl "180+1"]
[EndTime "8:59:08 PDT"]
[Termination "mapleaff won on time"]

1. e4 {[%clk 0:02:56.4]} 1... c5 {[%clk 0:02:59.5]} 2. Nf3 {[%clk 0:02:56.4]}
2... d6 {[%clk 0:02:59.8]} 3. Bb5+ {[%clk 0:02:54.5]} 3... Nd7 {[%clk
0:02:59.4]} 4. O-O {[%clk 0:02:53.8]} 4... Nf6 {[%clk 0:02:59.2]} 5. Re1 {[%clk
0:02:50.2]} 5... a6 {[%clk 0:02:59.3]} 6. Bd3 {[%clk 0:02:50.3]} 6... b5 {[%clk
0:02:47.4]} 7. c4 {[%clk 0:02:47.5]} 7... g5 {[%clk 0:02:45.4]} 8. Rf1 {[%clk
0:02:13.1]} 8... g4 {[%clk 0:02:43]} 9. Ne1 {[%clk 0:02:11.3]} 9... Ne5 {[%clk
0:02:42]} 10. Be2 {[%clk 0:02:09.2]} 10... bxc4 {[%clk 0:02:40.3]} 11. Nc3
{[%clk 0:02:02.3]} 11... Bd7 {[%clk 0:02:34.4]} 12. d3 {[%clk 0:02:00.1]} 12...
cxd3 {[%clk 0:02:33.8]} 13. Nxd3 {[%clk 0:02:00.8]} 13... Nxd3 {[%clk
0:02:24.6]} 14. Bxd3 {[%clk 0:02:01.7]} 14... Rg8 {[%clk 0:02:20.9]} 15. Re1
{[%clk 0:01:41]} 15... e6 {[%clk 0:01:56.2]} 16. e5 {[%clk 0:01:29.7]} 16...
dxe5 {[%clk 0:01:56.1]} 17. Rxe5 {[%clk 0:01:30.6]} 17... Bd6 {[%clk 0:01:55.4]}
18. Rg5 {[%clk 0:01:24.8]} 18... Ke7 {[%clk 0:01:42]} 19. Ne4 {[%clk 0:00:44.9]}
19... Nxe4 {[%clk 0:00:14.5]} 20. Bxe4 {[%clk 0:00:45.8]} 20... Rb8 {[%clk
0:00:11.4]} 21. Qxg4 {[%clk 0:00:30.5]} 21... Be5 {[%clk 0:00:11.7]} 22. Qf3
{[%clk 0:00:12.7]} 22... Bf6 {[%clk 0:00:10.6]} 23. Rh5 {[%clk 0:00:13.3]} 23...
Rg7 {[%clk 0:00:10.6]} 24. Bh6 {[%clk 0:00:06.6]} 24... Rg8 {[%clk 0:00:09]} 25.
Rd1 {[%clk 0:00:05.5]} 25... Qc7 {[%clk 0:00:08]} 26. Bf4 {[%clk 0:00:05.4]}
26... e5 {[%clk 0:00:08.3]} 27. Bg3 {[%clk 0:00:05.3]} 27... Rg7 {[%clk
0:00:08.3]} 28. Rh6 {[%clk 0:00:05.7]} 28... Be6 {[%clk 0:00:08.7]} 29. Qxf6+
{[%clk 0:00:05.4]} 29... Kf8 {[%clk 0:00:09.6]} 30. Rxh7 {[%clk 0:00:05.5]}
30... Rxh7 {[%clk 0:00:09.4]} 31. Bxh7 {[%clk 0:00:06.3]} 31... Rd8 {[%clk
0:00:08.8]} 32. Rxd8+ {[%clk 0:00:05.6]} 1-0

[Event "Early-Titled-Tuesday-Blitz-May-07-2024"]
[Site "Chess.com"]
[Date "2024.05.07"]
[Round "5"]
[White "th3d4rkness"]
[Black "RusPakhom"]
[Result "1-0"]
[WhiteElo "2215"]
[BlackElo "2368"]
[TimeControl "180+1"]
[EndTime "8:59:08 PDT"]
[Termination "th3d4rkness won on time"]

1. e4 {[%clk 0:03:00.9]} 1... c5 {[%clk 0:02:58.9]} 2. Nc3 {[%clk 0:02:59.7]}
2... d6 {[%clk 0:02:59.1]} 3. d4 {[%clk 0:02:59.1]} 3... cxd4 {[%clk 0:03:00]}
4. Qxd4 {[%clk 0:02:58.9]} 4... Nc6 {[%clk 0:03:00.7]} 5. Qd2 {[%clk 0:02:54.2]}
5... g6 {[%clk 0:03:00.7]} 6. b3 {[%clk 0:02:54]} 6... Bh6 {[%clk 0:03:00.6]} 7.
f4 {[%clk 0:02:54.1]} 7... Nf6 {[%clk 0:03:01.1]} 8. Bb2 {[%clk 0:02:52.5]} 8...
O-O {[%clk 0:03:01.4]} 9. O-O-O {[%clk 0:02:50.7]} 9... e5 {[%clk 0:03:01.5]}
10. g3 {[%clk 0:02:50.4]} 10... Bg4 {[%clk 0:03:01.5]} 11. Be2 {[%clk
0:02:33.3]} 11... Nd4 {[%clk 0:02:28.5]} 12. Bxg4 {[%clk 0:02:25.7]} 12... Nxg4
{[%clk 0:02:29.4]} 13. h3 {[%clk 0:02:19.6]} 13... Nf6 {[%clk 0:02:13.6]} 14.
Kb1 {[%clk 0:02:18.3]} 14... Rc8 {[%clk 0:01:49]} 15. Nge2 {[%clk 0:02:15.9]}
15... Nxe2 {[%clk 0:01:28.7]} 16. Qxe2 {[%clk 0:02:06.3]} 16... exf4 {[%clk
0:01:00.7]} 17. e5 {[%clk 0:02:05.7]} 17... Re8 {[%clk 0:00:59.7]} 18. Rxd6
{[%clk 0:01:49.4]} 18... Qxd6 {[%clk 0:00:56]} 19. exd6 {[%clk 0:01:49.2]} 19...
Rxe2 {[%clk 0:00:56.5]} 20. Nxe2 {[%clk 0:01:49.8]} 20... Nd5 {[%clk 0:00:26.6]}
21. c4 {[%clk 0:01:40.7]} 21... Nb4 {[%clk 0:00:05.9]} 22. Nxf4 {[%clk
0:01:33.7]} 22... Rd8 {[%clk 0:00:05.7]} 23. Rd1 {[%clk 0:01:30.5]} 23... Bg7
{[%clk 0:00:04.5]} 24. a3 {[%clk 0:01:23.7]} 24... Nc6 {[%clk 0:00:03.5]} 25. b4
{[%clk 0:01:14]} 25... Ne5 {[%clk 0:00:02.2]} 26. Bxe5 {[%clk 0:01:07.3]} 26...
Bxe5 {[%clk 0:00:03.1]} 27. c5 {[%clk 0:01:06.8]} 27... Bxf4 {[%clk 0:00:02.2]}
28. gxf4 {[%clk 0:01:06.9]} 28... Kg7 {[%clk 0:00:02.9]} 29. Kc2 {[%clk
0:01:06.9]} 29... Kf6 {[%clk 0:00:02.4]} 30. Kd3 {[%clk 0:01:04]} 30... Kf5
{[%clk 0:00:02.8]} 31. Kd4 {[%clk 0:01:03.4]} 31... Kxf4 {[%clk 0:00:02.1]} 32.
Rf1+ {[%clk 0:01:03.3]} 32... Kg3 {[%clk 0:00:02.6]} 33. Rxf7 {[%clk 0:01:03]}
33... h5 {[%clk 0:00:02.7]} 34. Rg7 {[%clk 0:00:54.9]} 34... Kxh3 {[%clk
0:00:02.9]} 35. Rxg6 {[%clk 0:00:55]} 35... h4 {[%clk 0:00:03]} 36. Kd5 {[%clk
0:00:53.5]} 36... Kh2 {[%clk 0:00:03]} 37. b5 {[%clk 0:00:53.1]} 37... h3 {[%clk
0:00:02.2]} 38. c6 {[%clk 0:00:53.2]} 38... bxc6+ {[%clk 0:00:02.8]} 39. bxc6
{[%clk 0:00:52.7]} 39... Kh1 {[%clk 0:00:03.4]} 40. c7 {[%clk 0:00:51.2]} 40...
Rf8 {[%clk 0:00:03.1]} 41. d7 {[%clk 0:00:50.3]} 41... h2 {[%clk 0:00:03.4]} 42.
d8=Q {[%clk 0:00:48.1]} 42... Rf5+ {[%clk 0:00:03.3]} 43. Ke4 {[%clk 0:00:47.7]}
43... Rf1 {[%clk 0:00:02.3]} 44. c8=Q {[%clk 0:00:45.8]} 44... a5 {[%clk
0:00:00.4]} 45. Qa8 {[%clk 0:00:44.5]} 45... Re1+ {[%clk 0:00:00.2]} 46. Kf4+
{[%clk 0:00:44.2]} 1-0

[Event "Early-Titled-Tuesday-Blitz-May-07-2024"]
[Site "Chess.com"]
[Date "2024.05.07"]
[Round "5"]
[White "krzyzan94"]
[Black "Zarinur"]
[Result "1-0"]
[WhiteElo "2800"]
[BlackElo "2539"]
[TimeControl "180+1"]
[EndTime "8:59:13 PDT"]
[Termination "krzyzan94 won by checkmate"]

1. e4 {[%clk 0:03:00.9]} 1... e5 {[%clk 0:02:59.4]} 2. Nf3 {[%clk 0:03:00.1]}
2... Nc6 {[%clk 0:02:59.3]} 3. Bc4 {[%clk 0:02:59]} 3... Nf6 {[%clk 0:02:57.8]}
4. d3 {[%clk 0:02:57.4]} 4... Bc5 {[%clk 0:02:52.8]} 5. Nc3 {[%clk 0:02:56.7]}
5... h6 {[%clk 0:02:47.8]} 6. O-O {[%clk 0:02:49.6]} 6... d6 {[%clk 0:02:45.4]}
7. Na4 {[%clk 0:02:49.3]} 7... Bg4 {[%clk 0:02:40.7]} 8. h3 {[%clk 0:02:44.9]}
8... Bh5 {[%clk 0:02:37.2]} 9. c3 {[%clk 0:02:35.4]} 9... Bb6 {[%clk 0:02:18.6]}
10. Nxb6 {[%clk 0:02:26.8]} 10... axb6 {[%clk 0:02:19.5]} 11. b4 {[%clk
0:02:22.8]} 11... Ne7 {[%clk 0:02:16.7]} 12. g4 {[%clk 0:01:55.7]} 12... Bg6
{[%clk 0:01:56]} 13. Nh4 {[%clk 0:01:52.1]} 13... O-O {[%clk 0:01:50.7]} 14. Qf3
{[%clk 0:01:31.5]} 14... d5 {[%clk 0:01:30]} 15. exd5 {[%clk 0:01:24.7]} 15...
Nfxd5 {[%clk 0:01:25.4]} 16. Bd2 {[%clk 0:01:17.9]} 16... c6 {[%clk 0:01:17.7]}
17. Rae1 {[%clk 0:01:14.7]} 17... b5 {[%clk 0:00:49.8]} 18. Bb3 {[%clk
0:01:12.6]} 18... Nc7 {[%clk 0:00:27.9]} 19. Rxe5 {[%clk 0:00:54.9]} 19... Bxd3
{[%clk 0:00:27.3]} 20. Rd1 {[%clk 0:00:49.5]} 20... Ned5 {[%clk 0:00:18.4]} 21.
Qxd3 {[%clk 0:00:42.5]} 21... Qxh4 {[%clk 0:00:18]} 22. Bc2 {[%clk 0:00:43.1]}
22... Nf6 {[%clk 0:00:11.1]} 23. Rh5 {[%clk 0:00:35.9]} 23... Qxh5 {[%clk
0:00:04.7]} 24. gxh5 {[%clk 0:00:36.2]} 24... Rxa2 {[%clk 0:00:03.7]} 25. Be3
{[%clk 0:00:29.2]} 25... Ncd5 {[%clk 0:00:03.5]} 26. Bb3 {[%clk 0:00:15.9]}
26... Ra3 {[%clk 0:00:03.5]} 27. Bxd5 {[%clk 0:00:13]} 27... Nxd5 {[%clk
0:00:03]} 28. Bd4 {[%clk 0:00:13.7]} 28... Nxb4 {[%clk 0:00:02.4]} 29. Qg3
{[%clk 0:00:13]} 29... f6 {[%clk 0:00:02.8]} 30. Bc5 {[%clk 0:00:10.5]} 30...
Rfa8 {[%clk 0:00:00.5]} 31. Rd7 {[%clk 0:00:08.9]} 31... Ra1+ {[%clk 0:00:01.1]}
32. Kg2 {[%clk 0:00:08.8]} 32... g5 {[%clk 0:00:00.4]} 33. Qc7 {[%clk
0:00:06.7]} 33... Rc1 {[%clk 0:00:00.8]} 34. Rg7+ {[%clk 0:00:06.9]} 34... Kh8
{[%clk 0:00:01.4]} 35. Rh7+ {[%clk 0:00:07.8]} 35... Kg8 {[%clk 0:00:01.5]} 36.
Qg7# {[%clk 0:00:08.7]} 1-0

[Event "Early-Titled-Tuesday-Blitz-May-07-2024"]
[Site "Chess.com"]
[Date "2024.05.07"]
[Round "5"]
[White "RebelJohnny"]
[Black "InitiatingASC"]
[Result "1-0"]
[WhiteElo "2570"]
[BlackElo "2397"]
[TimeControl "180+1"]
[EndTime "8:59:13 PDT"]
[Termination "RebelJohnny won on time"]

1. e4 {[%clk 0:03:00.9]} 1... e5 {[%clk 0:02:59.4]} 2. Nf3 {[%clk 0:03:00.9]}
2... Nf6 {[%clk 0:02:59.5]} 3. Nc3 {[%clk 0:03:01.2]} 3... Nc6 {[%clk
0:02:59.3]} 4. d4 {[%clk 0:03:01.6]} 4... exd4 {[%clk 0:02:57.4]} 5. Nxd4 {[%clk
0:03:02.5]} 5... Bc5 {[%clk 0:02:54.1]} 6. Be3 {[%clk 0:03:02.2]} 6... Nxd4
{[%clk 0:02:49]} 7. Bxd4 {[%clk 0:03:03.1]} 7... Bxd4 {[%clk 0:02:49]} 8. Qxd4
{[%clk 0:03:03.6]} 8... O-O {[%clk 0:02:47.5]} 9. e5 {[%clk 0:03:03.6]} 9... Ne8
{[%clk 0:02:45.9]} 10. O-O-O {[%clk 0:03:03.3]} 10... d6 {[%clk 0:02:33]} 11.
Bc4 {[%clk 0:03:03.4]} 11... Qg5+ {[%clk 0:02:25.8]} 12. f4 {[%clk 0:03:03.3]}
12... Qh6 {[%clk 0:02:26.2]} 13. Kb1 {[%clk 0:02:57.9]} 13... Bg4 {[%clk
0:02:20.2]} 14. Rde1 {[%clk 0:02:52.6]} 14... dxe5 {[%clk 0:01:50.7]} 15. fxe5
{[%clk 0:02:53.5]} 15... Be6 {[%clk 0:01:51.1]} 16. h3 {[%clk 0:02:42]} 16...
Bxc4 {[%clk 0:01:42.6]} 17. Qxc4 {[%clk 0:02:42.9]} 17... Qe6 {[%clk 0:01:42.3]}
18. Qb4 {[%clk 0:02:24.8]} 18... b6 {[%clk 0:01:30.7]} 19. Rhf1 {[%clk
0:02:19.7]} 19... c5 {[%clk 0:01:30.3]} 20. Qe4 {[%clk 0:02:09.2]} 20... Nc7
{[%clk 0:01:29.8]} 21. Qb7 {[%clk 0:01:56.8]} 21... Qc8 {[%clk 0:01:20.1]} 22.
Qf3 {[%clk 0:01:44.6]} 22... Ne6 {[%clk 0:01:19.7]} 23. Nd5 {[%clk 0:01:44.6]}
23... Qd8 {[%clk 0:01:10.2]} 24. Rd1 {[%clk 0:01:41.2]} 24... Qg5 {[%clk
0:01:05.6]} 25. Qe4 {[%clk 0:01:27.8]} 25... Rad8 {[%clk 0:00:58.2]} 26. c3
{[%clk 0:01:06.6]} 26... Kh8 {[%clk 0:00:52.8]} 27. g4 {[%clk 0:00:59.4]} 27...
Qg6 {[%clk 0:00:51.2]} 28. Rf5 {[%clk 0:00:52.6]} 28... Qh6 {[%clk 0:00:28.8]}
29. Rdf1 {[%clk 0:00:41.9]} 29... Ng5 {[%clk 0:00:20]} 30. Qc4 {[%clk
0:00:22.7]} 30... Nxh3 {[%clk 0:00:15.9]} 31. Ne7 {[%clk 0:00:16.5]} 31... Qd2
{[%clk 0:00:08.5]} 32. Rh1 {[%clk 0:00:07.6]} 32... Qd3+ {[%clk 0:00:06.8]} 33.
Qxd3 {[%clk 0:00:07.6]} 33... Rxd3 {[%clk 0:00:07.2]} 34. Rh5 {[%clk 0:00:08.3]}
34... Re8 {[%clk 0:00:04.3]} 35. Nf5 {[%clk 0:00:08.2]} 1-0

[Event "Early-Titled-Tuesday-Blitz-May-07-2024"]
[Site "Chess.com"]
[Date "2024.05.07"]
[Round "5"]
[White "erlesfar"]
[Black "ahmedkandiliii"]
[Result "0-1"]
[WhiteElo "2427"]
[BlackElo "2645"]
[TimeControl "180+1"]
[EndTime "8:59:14 PDT"]
[Termination "ahmedkandiliii won by resignation"]

1. e4 {[%clk 0:03:00.9]} 1... c6 {[%clk 0:02:58.1]} 2. d4 {[%clk 0:02:59.6]}
2... g6 {[%clk 0:02:56.1]} 3. c4 {[%clk 0:02:56.9]} 3... Bg7 {[%clk 0:02:54.3]}
4. Nc3 {[%clk 0:02:56.8]} 4... d6 {[%clk 0:02:48.7]} 5. Be3 {[%clk 0:02:55.5]}
5... Nf6 {[%clk 0:02:48.6]} 6. Be2 {[%clk 0:02:53.6]} 6... O-O {[%clk
0:02:49.1]} 7. h4 {[%clk 0:02:53.5]} 7... h5 {[%clk 0:02:45.7]} 8. Nh3 {[%clk
0:02:52.6]} 8... Nbd7 {[%clk 0:02:42.2]} 9. Ng5 {[%clk 0:02:48.2]} 9... e5
{[%clk 0:02:41.5]} 10. d5 {[%clk 0:02:41.7]} 10... Nc5 {[%clk 0:02:29.1]} 11.
dxc6 {[%clk 0:02:26.7]} 11... bxc6 {[%clk 0:02:23]} 12. Bxc5 {[%clk 0:02:25.9]}
12... dxc5 {[%clk 0:02:23.9]} 13. Qxd8 {[%clk 0:02:25.1]} 13... Rxd8 {[%clk
0:02:24.8]} 14. f3 {[%clk 0:02:19]} 14... Rb8 {[%clk 0:02:24.5]} 15. b3 {[%clk
0:02:17.1]} 15... Be6 {[%clk 0:02:21.3]} 16. Na4 {[%clk 0:02:15.1]} 16... Bf8
{[%clk 0:02:17.9]} 17. Rd1 {[%clk 0:02:06.3]} 17... Rxd1+ {[%clk 0:02:16.1]} 18.
Kxd1 {[%clk 0:02:03.1]} 18... Rd8+ {[%clk 0:02:16.7]} 19. Kc2 {[%clk 0:02:03.1]}
19... Be7 {[%clk 0:02:11.2]} 20. Nxe6 {[%clk 0:01:53.8]} 20... fxe6 {[%clk
0:02:11.1]} 21. g3 {[%clk 0:01:53.4]} 21... Kf7 {[%clk 0:02:02.4]} 22. Bf1
{[%clk 0:01:51.9]} 22... Rd4 {[%clk 0:02:00.5]} 23. Bh3 {[%clk 0:01:49.9]} 23...
Nd7 {[%clk 0:01:47.6]} 24. Nc3 {[%clk 0:01:46.6]} 24... g5 {[%clk 0:01:38]} 25.
Ne2 {[%clk 0:01:44.2]} 25... Rd6 {[%clk 0:01:37.3]} 26. g4 {[%clk 0:01:37.5]}
26... hxg4 {[%clk 0:01:32.8]} 27. Bxg4 {[%clk 0:01:35.4]} 27... gxh4 {[%clk
0:01:33.4]} 28. Nc1 {[%clk 0:01:19.8]} 28... Nf6 {[%clk 0:01:10.1]} 29. Nd3
{[%clk 0:01:14.3]} 29... Nxg4 {[%clk 0:01:10]} 30. fxg4 {[%clk 0:01:13.3]} 30...
Bf6 {[%clk 0:01:09.3]} 31. g5 {[%clk 0:01:03]} 31... Bxg5 {[%clk 0:01:06.2]} 32.
Nxe5+ {[%clk 0:01:02.6]} 32... Kf6 {[%clk 0:01:01.4]} 33. Nd3 {[%clk 0:00:58]}
33... Rd4 {[%clk 0:00:57.5]} 34. Nxc5 {[%clk 0:00:50.3]} 34... Rd2+ {[%clk
0:00:50.5]} 35. Kc3 {[%clk 0:00:48.2]} 35... Rxa2 {[%clk 0:00:50.2]} 36. Nd3
{[%clk 0:00:42.2]} 36... Rg2 {[%clk 0:00:25.7]} 37. Rf1+ {[%clk 0:00:30.1]}
37... Kg7 {[%clk 0:00:21.2]} 38. Ne5 {[%clk 0:00:29.8]} 38... Bf6 {[%clk
0:00:19.5]} 39. Kd4 {[%clk 0:00:29.4]} 39... Rg5 {[%clk 0:00:19.5]} 40. Kc5
{[%clk 0:00:29.6]} 40... Rxe5+ {[%clk 0:00:19.3]} 41. Kxc6 {[%clk 0:00:30.5]}
41... Rxe4 {[%clk 0:00:19.9]} 42. Kd7 {[%clk 0:00:30.4]} 42... Re3 {[%clk
0:00:20.2]} 43. Rg1+ {[%clk 0:00:25.8]} 43... Kh6 {[%clk 0:00:19.6]} 44. Ke8
{[%clk 0:00:26.7]} 44... h3 {[%clk 0:00:19.2]} 45. Kf7 {[%clk 0:00:27.6]} 45...
Bg5 {[%clk 0:00:18.6]} 46. Rh1 {[%clk 0:00:24.4]} 46... Rxb3 {[%clk 0:00:18.5]}
0-1